fUST/lending_fUST_20250806
["ID","MTS","AMOUNT","RATE_DAILY","PERIOD"]
[377496388,1754429458007,-1000.0,0.00028221,5]
[377496389,1754429458017,-1000.0,0.00028221,5]
[377496390,1754429458026,-653.0185066,0.00028221,5]
[377496391,1754429458036,-1000.0,0.00028221,2]
[377496392,1754429458047,-1000.0,0.00028221,5]
[377496393,1754429458056,-407.27132358,0.00028221,5]
[377496394,1754429458066,-521.19136704,0.00028221,5]
[377496395,1754429458075,-2919.75940894,0.00028235,2]
[377496396,1754429458085,-260.0,0.00028259,2]
[377496397,1754429458095,-200.0,0.00028273,5]
[377496398,1754429458105,-538.56345926,0.00028293,7]
[377496399,1754429458115,-160.0,0.00028293,7]
[377496400,1754429458124,-527.3554621,0.00028293,7]
[377496401,1754429458134,-216.4206905,0.00028293,7]
[377496402,1754429458143,-153.0,0.00028384,2]
[377496403,1754429458153,-153.0,0.00028384,2]
[377496404,1754429458162,-153.0,0.00028384,2]
[377496405,1754429458172,-153.0,0.00028384,2]
[377496406,1754429458182,-153.0,0.00028384,2]
[377496407,1754429458191,-153.0,0.00028384,2]
[377496408,1754429458201,-153.0,0.00028384,2]
[377496409,1754429458211,-153.0,0.00028384,2]
[377496410,1754429458223,-153.0,0.00028384,2]
[377496411,1754429458233,-153.0,0.00028384,2]
[377496412,1754429458243,-153.0,0.00028384,2]
[377496413,1754429458253,-153.0,0.00028384,2]
[377496414,1754429458262,-153.0,0.00028384,2]
[377496415,1754429458272,-153.0,0.00028384,2]
[377496416,1754429458281,-153.0,0.00028384,2]
[377496417,1754429458290,-153.0,0.00028384,2]
[377496418,1754429458299,-153.0,0.00028384,2]
[377496419,1754429458309,-153.0,0.00028384,2]
[377496420,1754429458318,-153.0,0.00028384,2]
[377496421,1754429458327,-153.0,0.00028384,2]
[377496422,1754429458338,-153.0,0.00028384,2]
[377496423,1754429458347,-153.0,0.00028384,2]
[377496424,1754429458357,-153.0,0.00028384,2]
[377496425,1754429458366,-153.0,0.00028384,2]
[377496426,1754429458376,-153.0,0.00028384,2]
[377496427,1754429458386,-153.0,0.00028384,2]
[377496428,1754429458395,-153.0,0.00028384,2]
[377496429,1754429458404,-153.0,0.00028384,2]
[377496430,1754429458414,-153.0,0.00028384,2]
[377496431,1754429458423,-153.0,0.00028384,2]
[377496432,1754429458432,-153.0,0.00028384,2]
[377496433,1754429458442,-153.0,0.00028384,2]
[377496434,1754429458451,-153.0,0.00028384,2]
[377496435,1754429458460,-153.0,0.00028384,2]
[377496436,1754429458470,-153.0,0.00028384,2]
[377496437,1754429458479,-153.0,0.00028384,2]
[377496438,1754429458488,-153.0,0.00028384,2]
[377496439,1754429458497,-153.0,0.00028384,2]
[377496440,1754429458507,-153.0,0.00028384,2]
[377496441,1754429458516,-153.0,0.00028384,2]
[377496442,1754429458526,-153.0,0.00028384,2]
[377496443,1754429458535,-153.0,0.00028384,2]
[377496444,1754429458544,-153.0,0.00028384,2]
[377496445,1754429458554,-153.0,0.00028384,2]
[377496446,1754429458564,-153.0,0.00028384,2]
[377496447,1754429458576,-153.0,0.00028384,2]
[377496448,1754429458585,-153.0,0.00028384,2]
[377496449,1754429458595,-153.0,0.00028384,2]
[377496450,1754429458604,-153.0,0.00028384,2]
[377496451,1754429458615,-153.0,0.00028384,2]
[377496452,1754429458624,-153.0,0.00028384,2]
[377496453,1754429458633,-153.0,0.00028384,2]
[377496454,1754429458644,-12383.7971005,0.00028429,9]
[377496455,1754429458653,-1500.0,0.00028468,5]
[377496456,1754429458662,-505.56393485,0.00028468,5]
[377496457,1754429458671,-500.0,0.00028468,5]
[377496458,1754429458680,-500.82773618,0.00028473,5]
[377496459,1754429458689,-150.0,0.00028473,5]
[377496460,1754429458698,-460.0,0.00028493,2]
[377496461,1754429458707,-372.82788003,0.00028493,2]
[377496462,1754429458716,-460.0,0.00028493,2]
[377496463,1754429458726,-608.5789419,0.00028493,2]
[377496464,1754429458736,-460.0,0.00028493,2]
[377496465,1754429458746,-460.0,0.00028493,2]
[377496466,1754429458755,-460.0,0.00028493,2]
[377496467,1754429458764,-460.0,0.00028493,2]
[377496468,1754429458774,-460.0,0.00028493,2]
[377496469,1754429458783,-460.0,0.00028493,2]
[377496470,1754429458793,-460.0,0.00028493,2]
[377496471,1754429458802,-460.0,0.00028493,2]
[377496472,1754429458811,-461.07784282,0.00028493,2]
[377496473,1754429458820,-460.0,0.00028493,2]
[377496474,1754429458829,-460.0,0.00028493,2]
[377496475,1754429458838,-2599.73,0.00028493,2]
[377496476,1754429458847,-460.0,0.00028493,2]
[377496477,1754429458857,-500.0,0.00028493,2]
[377496478,1754429458866,-647.28,0.00028493,2]
[377496479,1754429458875,-460.0,0.00028493,2]
[377496480,1754429458884,-460.0,0.00028493,2]
[377496481,1754429458894,-460.0,0.00028493,2]
[377496482,1754429458903,-460.0,0.00028493,2]
[377496483,1754429458912,-460.0,0.00028493,2]
[377496484,1754429458921,-460.0,0.00028493,2]
[377496485,1754429458930,-460.0,0.00028493,2]
[377496486,1754429458938,-460.0,0.00028493,2]
[377496487,1754429458948,-460.0,0.00028493,2]
[377496488,1754429458957,-460.0,0.00028493,2]
[377496489,1754429458967,-460.0,0.00028493,2]
[377496490,1754429458977,-460.0,0.00028493,2]
[377496491,1754429458991,-482.37343834,0.00028493,2]
[377496492,1754429459000,-460.0,0.00028493,2]
[377496493,1754429459009,-460.0,0.00028493,2]
[377496494,1754429459019,-460.0,0.00028493,2]
[377496495,1754429459028,-460.0,0.00028493,2]
[377496496,1754429459037,-387.41344009,0.00028493,2]
[377496497,1754429459046,-412.99523641,0.00028493,2]
[377496498,1754429459055,-460.0,0.00028493,2]
[377496499,1754429459065,-890.25,0.00028493,2]
[377496500,1754429459075,-1215.52,0.00028493,2]
[377496501,1754429459084,-460.0,0.00028493,2]
[377496502,1754429459093,-460.0,0.00028493,2]
[377496503,1754429459102,-460.0,0.00028493,2]
[377496504,1754429459112,-460.0,0.00028493,2]
[377496505,1754429459124,-460.0,0.00028493,2]
[377496506,1754429459133,-464.94060883,0.00028493,2]
[377496507,1754429459143,-460.0,0.00028493,2]
[377496508,1754429459152,-460.0,0.00028493,2]
[377496509,1754429459161,-460.0,0.00028493,2]
[377496510,1754429459170,-1613.88,0.00028493,2]
[377496511,1754429459179,-460.0,0.00028493,2]
[377496512,1754429459189,-460.0,0.00028493,2]
[377496513,1754429459198,-460.0,0.00028493,2]
[377496514,1754429459208,-1003.33,0.00028493,2]
[377496515,1754429459217,-460.0,0.00028493,2]
[377496516,1754429459226,-460.0,0.00028493,2]
[377496517,1754429459236,-474.49005537,0.00028493,2]
[377496518,1754429459245,-460.0,0.00028493,2]
[377496519,1754429459255,-460.0,0.00028493,2]
[377496520,1754429459265,-251.0116071,0.00028493,2]
[377496521,1754429459274,-241.38269865,0.00028493,2]
[377496522,1754429459283,-460.0,0.00028493,2]
[377496523,1754429459292,-460.0,0.00028493,2]
[377496524,1754429459303,-460.0,0.00028493,2]
[377496525,1754429459312,-910.87,0.00028493,2]
[377496526,1754429459322,-460.0,0.00028493,2]
[377496527,1754429459331,-460.0,0.00028493,2]
[377496528,1754429459340,-466.14455313,0.00028493,2]
[377496529,1754429459349,-460.0,0.00028493,2]
[377496530,1754429459358,-460.0,0.00028493,2]
[377496531,1754429459367,-463.7050291,0.00028493,2]
[377496532,1754429459377,-460.0,0.00028493,2]
[377496533,1754429459386,-460.0,0.00028493,2]
[377496534,1754429459396,-460.0,0.00028493,2]
[377496535,1754429459405,-1721.06,0.00028493,2]
[377496536,1754429459414,-460.0,0.00028493,2]
[377496537,1754429459423,-460.0,0.00028493,2]
[377496538,1754429459433,-241.49585398,0.00028493,2]
[377496539,1754429459442,-398.63614994,0.00028493,2]
[377496540,1754429459451,-460.0,0.00028493,2]
[377496541,1754429459461,-318.72511225,0.00028493,2]
[377496542,1754429459470,-460.0,0.00028493,2]
[377496543,1754429459480,-460.0,0.00028493,2]
[377496544,1754429459489,-475.04,0.00028493,2]
[377496545,1754429459498,-460.0,0.00028493,2]
[377496546,1754429459507,-460.0,0.00028493,2]
[377496547,1754429459517,-460.0,0.00028493,2]
[377496548,1754429459526,-460.0,0.00028493,2]
[377496549,1754429459535,-460.0,0.00028493,2]
[377496550,1754429459545,-510.22,0.00028493,2]
[377496551,1754429459555,-460.0,0.00028493,2]
[377496552,1754429459564,-1697.81,0.00028493,2]
[377496553,1754429459576,-460.0,0.00028493,2]
[377496554,1754429459585,-490.46472836,0.00028493,2]
[377496555,1754429459595,-460.0,0.00028493,2]
[377496556,1754429459604,-460.0,0.00028493,2]
[377496557,1754429459615,-460.0,0.00028493,2]
[377496558,1754429459624,-466.45176563,0.00028493,2]
[377496559,1754429459633,-460.0,0.00028493,2]
[377496560,1754429459643,-460.0,0.00028493,2]
[377496561,1754429459652,-460.0,0.00028493,2]
[377496562,1754429459662,-464.19185813,0.00028493,2]
[377496563,1754429459671,-460.0,0.00028493,2]
[377496564,1754429459680,-460.0,0.00028493,2]
[377496565,1754429459689,-460.0,0.00028493,2]
[377496566,1754429459699,-460.0,0.00028493,2]
[377496567,1754429459708,-460.0,0.00028493,2]
[377496568,1754429459718,-460.0,0.00028493,2]
[377496569,1754429459727,-460.0,0.00028493,2]
[377496570,1754429459737,-460.0,0.00028493,2]
[377496571,1754429459746,-460.0,0.00028493,2]
[377496572,1754429459756,-460.0,0.00028493,2]
[377496573,1754429459765,-460.0,0.00028493,2]
[377496574,1754429459774,-460.0,0.00028493,2]
[377496575,1754429459783,-460.0,0.00028493,2]
[377496576,1754429459793,-460.0,0.00028493,2]
[377496577,1754429459929,-460.0,0.00028493,2]
[377496578,1754429459939,-460.0,0.00028493,2]
[377496579,1754429459948,-464.16573078,0.00028493,2]
[377496580,1754429459958,-460.0,0.00028493,2]
[377496581,1754429459967,-1389.71,0.00028493,2]
[377496582,1754429459976,-460.0,0.00028493,2]
[377496583,1754429459985,-460.0,0.00028493,2]
[377496584,1754429459995,-1746.17,0.00028493,2]
[377496585,1754429460005,-563.58629071,0.00028493,2]
[377496586,1754429460015,-460.0,0.00028493,2]
[377496587,1754429460025,-460.0,0.00028493,2]
[377496588,1754429460034,-460.0,0.00028493,2]
[377496589,1754429460045,-460.0,0.00028493,2]
[377496590,1754429460055,-460.0,0.00028493,2]
[377496591,1754429460065,-604.18,0.00028493,2]
[377496592,1754429460075,-460.0,0.00028493,2]
[377496593,1754429460084,-1166.12,0.00028493,2]
[377496594,1754429460093,-885.05,0.00028493,2]
[377496595,1754429460103,-460.0,0.00028493,2]
[377496596,1754429460112,-1602.43,0.00028493,2]
[377496597,1754429460121,-460.0,0.00028493,2]
[377496598,1754429460131,-460.0,0.00028493,2]
[377496599,1754429460140,-1853.92,0.00028493,2]
[377496600,1754429460150,-460.0,0.00028493,2]
[377496601,1754429460159,-1621.7,0.00028493,2]
[377496602,1754429460169,-460.0,0.00028493,2]
[377496603,1754429460178,-460.0,0.00028493,2]
[377496604,1754429460187,-1277.23,0.00028493,2]
[377496605,1754429460196,-588.9,0.00028493,2]
[377496606,1754429460205,-460.0,0.00028493,2]
[377496607,1754429460215,-490.79,0.00028493,2]
[377496608,1754429460225,-1154.74,0.00028493,2]
[377496609,1754429460236,-460.0,0.00028493,2]
[377496610,1754429460246,-464.23388928,0.00028493,2]
[377496611,1754429460257,-471.28718924,0.00028493,2]
[377496612,1754429460267,-460.0,0.00028493,2]
[377496613,1754429460277,-500.0,0.00028493,2]
[377496614,1754429460287,-460.0,0.00028493,2]
[377496615,1754429460297,-2365.9,0.00028493,2]
[377496616,1754429460306,-460.0,0.00028493,2]
[377496617,1754429460316,-460.0,0.00028493,2]
[377496618,1754429460325,-460.0,0.00028493,2]
[377496619,1754429460335,-2705.9,0.00028493,2]
[377496620,1754429460345,-460.0,0.00028493,2]
[377496621,1754429460355,-186.47048675,0.00028493,2]
[377496622,1754429460364,-460.0,0.00028493,2]
[377496623,1754429460373,-460.0,0.00028493,2]
[377496624,1754429460383,-742.9,0.00028493,2]
[377496625,1754429460393,-460.0,0.00028493,2]
[377496626,1754429460403,-460.0,0.00028493,2]
[377496627,1754429460412,-460.0,0.00028493,2]
[377496628,1754429460422,-866.16,0.00028493,2]
[377496629,1754429460432,-555.68,0.00028493,2]
[377496630,1754429460441,-460.0,0.00028493,2]
[377496631,1754429460450,-270.20706565,0.00028493,2]
[377496632,1754429460460,-469.99399809,0.00028493,2]
[377496633,1754429460469,-460.0,0.00028493,2]
[377496634,1754429460479,-460.0,0.00028493,2]
[377496635,1754429460488,-1093.91,0.00028493,2]
[377496636,1754429460498,-460.0,0.00028493,2]
[377496637,1754429460507,-460.0,0.00028493,2]
[377496638,1754429460517,-460.0,0.00028493,2]
[377496639,1754429460526,-460.0,0.00028493,2]
[377496640,1754429460536,-460.0,0.00028493,2]
[377496641,1754429460545,-5056.15,0.00028493,2]
[377496642,1754429460555,-975.87,0.00028493,2]
[377496643,1754429460567,-1579.03,0.00028493,2]
[377496644,1754429460582,-460.0,0.00028493,2]
[377496645,1754429460592,-1933.65,0.00028493,2]
[377496646,1754429460602,-460.0,0.00028493,2]
[377496647,1754429460612,-460.0,0.00028493,2]
[377496648,1754429460621,-1460.3,0.00028493,2]
[377496649,1754429460631,-909.37,0.00028493,2]
[377496650,1754429460642,-1357.16,0.00028493,2]
[377496651,1754429460651,-460.0,0.00028493,2]
[377496652,1754429460661,-460.0,0.00028493,2]
[377496653,1754429460670,-758.18,0.00028493,2]
[377496654,1754429460680,-460.0,0.00028493,2]
[377496655,1754429460689,-460.0,0.00028493,2]
[377496656,1754429460699,-460.0,0.00028493,2]
[377496657,1754429460708,-628.98,0.00028493,2]
[377496658,1754429460718,-460.0,0.00028493,2]
[377496659,1754429460728,-2456.07,0.00028493,2]
[377496660,1754429460737,-460.0,0.00028493,2]
[377496661,1754429460746,-460.0,0.00028493,2]
[377496662,1754429460757,-460.0,0.00028493,2]
[377496663,1754429460766,-460.0,0.00028493,2]
[377496664,1754429460775,-460.0,0.00028493,2]
[377496665,1754429460785,-594.4,0.00028493,2]
[377496666,1754429460795,-2085.01,0.00028493,2]
[377496667,1754429460804,-460.0,0.00028493,2]
[377496668,1754429460813,-740.07,0.00028493,2]
[377496669,1754429460823,-460.0,0.00028493,2]
[377496670,1754429460832,-460.0,0.00028493,2]
[377496671,1754429460842,-467.12078335,0.00028493,2]
[377496672,1754429460851,-460.0,0.00028493,2]
[377496673,1754429460861,-75664.3,0.00028493,2]
[377496674,1754429460871,-460.0,0.00028493,2]
[377496675,1754429460880,-460.0,0.00028493,2]
[377496676,1754429460889,-460.0,0.00028493,2]
[377496677,1754429460898,-460.0,0.00028493,2]
[377496678,1754429460907,-597.5,0.00028493,2]
[377496679,1754429460917,-460.0,0.00028493,2]
[377496680,1754429460926,-460.0,0.00028493,2]
[377496681,1754429460935,-1539.9,0.00028493,2]
[377496682,1754429460945,-460.0,0.00028493,2]
[377496683,1754429460954,-883.82,0.00028493,2]
[377496684,1754429460964,-460.0,0.00028493,2]
[377496685,1754429460974,-460.0,0.00028493,2]
[377496686,1754429460983,-460.0,0.00028493,2]
[377496687,1754429460993,-460.0,0.00028493,2]
[377496688,1754429461002,-2763.59,0.00028493,2]
[377496689,1754429461012,-460.0,0.00028493,2]
[377496690,1754429461022,-460.0,0.00028493,2]
[377496691,1754429461031,-460.0,0.00028493,2]
[377496692,1754429461040,-790.56,0.00028493,2]
[377496693,1754429461050,-1031.45,0.00028493,2]
[377496694,1754429461059,-759.32,0.00028493,2]
[377496695,1754429461068,-460.0,0.00028493,2]
[377496696,1754429461079,-7586.92,0.00028493,2]
[377496697,1754429461091,-460.0,0.00028493,2]
[377496698,1754429461101,-460.0,0.00028493,2]
[377496699,1754429461110,-787.25,0.00028493,2]
[377496700,1754429461120,-460.0,0.00028493,2]
[377496701,1754429461130,-498.05,0.00028493,2]
[377496702,1754429461139,-460.0,0.00028493,2]
[377496703,1754429461149,-460.0,0.00028493,2]
[377496704,1754429461158,-460.0,0.00028493,2]
[377496705,1754429461167,-330.2731705,0.00028493,2]
[377496706,1754429461177,-1040.96,0.00028493,2]
[377496707,1754429461186,-460.0,0.00028493,2]
[377496708,1754429461195,-463.13361287,0.00028493,2]
[377496709,1754429461205,-460.0,0.00028493,2]
[377496710,1754429461215,-460.0,0.00028493,2]
[377496711,1754429461225,-2012.92,0.00028493,2]
[377496712,1754429461236,-274.52226462,0.00028493,2]
[377496713,1754429461246,-460.0,0.00028493,2]
[377496714,1754429461255,-6734.57,0.00028493,2]
[377496715,1754429461266,-460.0,0.00028493,2]
[377496716,1754429461276,-1457.79,0.00028493,2]
[377496717,1754429461285,-1073.67,0.00028493,2]
[377496718,1754429461295,-460.0,0.00028493,2]
[377496719,1754429461305,-460.0,0.00028493,2]
[377496720,1754429461314,-460.0,0.00028493,2]
[377496721,1754429461323,-460.0,0.00028493,2]
[377496722,1754429461333,-460.0,0.00028493,2]
[377496723,1754429461342,-729.8,0.00028493,2]
[377496724,1754429461352,-460.0,0.00028493,2]
[377496725,1754429461361,-460.0,0.00028493,2]
[377496726,1754429461371,-460.0,0.00028493,2]
[377496727,1754429461380,-1132.05,0.00028493,2]
[377496728,1754429461390,-460.0,0.00028493,2]
[377496729,1754429461399,-460.0,0.00028493,2]
[377496730,1754429461409,-467.85007445,0.00028493,2]
[377496731,1754429461418,-1000.0,0.00028521,5]
[377496732,1754429461427,-500.0,0.00028521,5]
[377496733,1754429461436,-500.0,0.00028521,5]
[377496734,1754429461446,-250.0,0.00028521,5]
[377496735,1754429461455,-199.66,0.00028532,15]
[377496736,1754429461465,-199.66,0.00028632,15]
[377496737,1754429461474,-1000.0,0.000287,6]
[377496738,1754429461483,-160.0,0.00028718,10]
[377496739,1754429461493,-160.0,0.00028718,10]
[377496740,1754429461502,-231.72586818,0.00028718,10]
[377496741,1754429461511,-527.3554621,0.00028718,10]
[377496742,1754429461521,-216.4206905,0.00028718,10]
[377496743,1754429461530,-199.66,0.00028732,15]
[377496744,1754429461539,-460.0,0.00028767,2]
[377496745,1754429461549,-472.53548039,0.00028767,2]
[377496746,1754429461559,-460.0,0.00028767,2]
[377496747,1754429461571,-460.0,0.00028767,2]
[377496748,1754429461583,-460.0,0.00028767,2]
[377496749,1754429461593,-460.0,0.00028767,2]
[377496750,1754429461603,-460.0,0.00028767,2]
[377496751,1754429461615,-460.0,0.00028767,2]
[377496752,1754429461625,-460.0,0.00028767,2]
[377496753,1754429461635,-460.0,0.00028767,2]
[377496754,1754429461645,-460.0,0.00028767,2]
[377496755,1754429461657,-216.35496516,0.00028767,2]
[377496756,1754429461666,-2599.73,0.00028767,2]
[377496757,1754429461675,-460.0,0.00028767,2]
[377496758,1754429461685,-500.0,0.00028767,2]
[377496759,1754429461695,-647.28,0.00028767,2]
[377496760,1754429461704,-569.2,0.00028767,2]
[377496761,1754429461713,-460.0,0.00028767,2]
[377496762,1754429461723,-460.0,0.00028767,2]
[377496763,1754429461733,-532.14197992,0.00028767,2]
[377496764,1754429461743,-460.0,0.00028767,2]
[377496765,1754429461752,-460.0,0.00028767,2]
[377496766,1754429461762,-460.0,0.00028767,2]
[377496767,1754429461771,-460.0,0.00028767,2]
[377496768,1754429461781,-460.0,0.00028767,2]
[377496769,1754429461790,-460.0,0.00028767,2]
[377496770,1754429461800,-460.0,0.00028767,2]
[377496771,1754429461809,-460.0,0.00028767,2]
[377496772,1754429461819,-460.0,0.00028767,2]
[377496773,1754429461828,-383.12478813,0.00028767,2]
[377496774,1754429461838,-460.0,0.00028767,2]
[377496775,1754429461848,-466.27022632,0.00028767,2]
[377496776,1754429461858,-890.25,0.00028767,2]
[377496777,1754429461869,-1215.52,0.00028767,2]
[377496778,1754429461879,-460.0,0.00028767,2]
[377496779,1754429461889,-460.0,0.00028767,2]
[377496780,1754429461899,-460.0,0.00028767,2]
[377496781,1754429461909,-537.0277846,0.00028767,2]
[377496782,1754429461918,-460.0,0.00028767,2]
[377496783,1754429461928,-1613.88,0.00028767,2]
[377496784,1754429461937,-460.0,0.00028767,2]
[377496785,1754429461947,-460.0,0.00028767,2]
[377496786,1754429461957,-460.0,0.00028767,2]
[377496787,1754429461967,-1003.33,0.00028767,2]
[377496788,1754429461976,-460.0,0.00028767,2]
[377496789,1754429461988,-306.737936,0.00028767,2]
[377496790,1754429461997,-460.0,0.00028767,2]
[377496791,1754429462007,-460.0,0.00028767,2]
[377496792,1754429462016,-460.0,0.00028767,2]
[377496793,1754429462026,-460.0,0.00028767,2]
[377496794,1754429462036,-460.0,0.00028767,2]
[377496795,1754429462045,-910.87,0.00028767,2]
[377496796,1754429462054,-460.0,0.00028767,2]
[377496797,1754429462063,-460.0,0.00028767,2]
[377496798,1754429462072,-460.0,0.00028767,2]
[377496799,1754429462082,-336.91920063,0.00028767,2]
[377496800,1754429462092,-460.0,0.00028767,2]
[377496801,1754429462102,-1721.06,0.00028767,2]
[377496802,1754429462112,-460.0,0.00028767,2]
[377496803,1754429462123,-495.79985782,0.00028767,2]
[377496804,1754429462132,-460.0,0.00028767,2]
[377496805,1754429462142,-460.0,0.00028767,2]
[377496806,1754429462152,-475.04,0.00028767,2]
[377496807,1754429462163,-460.0,0.00028767,2]
[377496808,1754429462174,-460.0,0.00028767,2]
[377496809,1754429462183,-460.0,0.00028767,2]
[377496810,1754429462195,-307.7721266,0.00028767,2]
[377496811,1754429462204,-510.22,0.00028767,2]
[377496812,1754429462213,-460.0,0.00028767,2]
[377496813,1754429462223,-1697.81,0.00028767,2]
[377496814,1754429462235,-206.15088004,0.00028767,2]
[377496815,1754429462244,-460.0,0.00028767,2]
[377496816,1754429462253,-460.0,0.00028767,2]
[377496817,1754429462263,-460.0,0.00028767,2]
[377496818,1754429462272,-460.0,0.00028767,2]
[377496819,1754429462282,-460.0,0.00028767,2]
[377496820,1754429462291,-460.0,0.00028767,2]
[377496821,1754429462302,-460.0,0.00028767,2]
[377496822,1754429462311,-460.0,0.00028767,2]
[377496823,1754429462321,-460.0,0.00028767,2]
[377496824,1754429462331,-460.0,0.00028767,2]
[377496825,1754429462340,-460.0,0.00028767,2]
[377496826,1754429462350,-460.0,0.00028767,2]
[377496827,1754429462359,-460.0,0.00028767,2]
[377496828,1754429462368,-460.0,0.00028767,2]
[377496829,1754429462378,-460.0,0.00028767,2]
[377496830,1754429462387,-563.7824126,0.00028767,2]
[377496831,1754429462397,-460.0,0.00028767,2]
[377496832,1754429462407,-460.0,0.00028767,2]
[377496833,1754429462417,-460.0,0.00028767,2]
[377496834,1754429462426,-460.0,0.00028767,2]
[377496835,1754429462436,-1389.71,0.00028767,2]
[377496836,1754429462445,-460.0,0.00028767,2]
[377496837,1754429462455,-460.0,0.00028767,2]
[377496838,1754429462464,-1746.17,0.00028767,2]
[377496839,1754429462474,-460.0,0.00028767,2]
[377496840,1754429462484,-460.0,0.00028767,2]
[377496841,1754429462493,-460.0,0.00028767,2]
[377496842,1754429462503,-460.0,0.00028767,2]
[377496843,1754429462512,-604.18,0.00028767,2]
[377496844,1754429462522,-460.0,0.00028767,2]
[377496845,1754429462531,-1166.12,0.00028767,2]
[377496846,1754429462540,-885.05,0.00028767,2]
[377496847,1754429462549,-467.13404748,0.00028767,2]
[377496848,1754429462559,-1602.43,0.00028767,2]
[377496849,1754429462569,-460.0,0.00028767,2]
[377496850,1754429462583,-460.0,0.00028767,2]
[377496851,1754429462593,-1853.92,0.00028767,2]
[377496852,1754429462602,-1621.7,0.00028767,2]
[377496853,1754429462612,-460.0,0.00028767,2]
[377496854,1754429462622,-460.0,0.00028767,2]
[377496855,1754429462631,-1277.23,0.00028767,2]
[377496856,1754429462641,-588.9,0.00028767,2]
[377496857,1754429462653,-460.0,0.00028767,2]
[377496858,1754429462664,-490.79,0.00028767,2]
[377496859,1754429462673,-1154.74,0.00028767,2]
[377496860,1754429462683,-460.0,0.00028767,2]
[377496861,1754429462692,-500.0,0.00028767,2]
[377496862,1754429462702,-460.0,0.00028767,2]
[377496863,1754429462710,-460.0,0.00028767,2]
[377496864,1754429462719,-460.0,0.00028767,2]
[377496865,1754429462729,-2365.9,0.00028767,2]
[377496866,1754429462739,-460.0,0.00028767,2]
[377496867,1754429462748,-491.7491041,0.00028767,2]
[377496868,1754429462758,-2705.9,0.00028767,2]
[377496869,1754429462767,-460.0,0.00028767,2]
[377496870,1754429462896,-460.0,0.00028767,2]
[377496871,1754429462906,-460.0,0.00028767,2]
[377496872,1754429462916,-742.9,0.00028767,2]
[377496873,1754429462926,-471.12566077,0.00028767,2]
[377496874,1754429462935,-460.0,0.00028767,2]
[377496875,1754429462945,-460.0,0.00028767,2]
[377496876,1754429462954,-866.16,0.00028767,2]
[377496877,1754429462964,-555.68,0.00028767,2]
[377496878,1754429462973,-460.0,0.00028767,2]
[377496879,1754429462983,-460.0,0.00028767,2]
[377496880,1754429462993,-416.28278913,0.00028767,2]
[377496881,1754429463002,-1093.91,0.00028767,2]
[377496882,1754429463011,-460.0,0.00028767,2]
[377496883,1754429463020,-460.0,0.00028767,2]
[377496884,1754429463030,-444.5046586,0.00028767,2]
[377496885,1754429463039,-460.0,0.00028767,2]
[377496886,1754429463050,-460.0,0.00028767,2]
[377496887,1754429463061,-5056.15,0.00028767,2]